[Event "19th IPCA WCC 2019"]
[Site "Ruzomberok"]
[Date "2019.06.30"]
[Round "3.3"]
[White "Jurkiewicz, Krzysztof"]
[Black "Palin, Denis"]
[Result "1/2-1/2"]
[ECO "D34"]
[WhiteElo "2275"]
[BlackElo "2180"]
[Annotator "NA"]
[PlyCount "129"]
[EventDate "2019.06.28"]
[EventType "swiss"]
[EventCountry "SVK"]
[SourceTitle "playchess.com"]
[Source "ChessBase"]
[SourceQuality "1"]
[TimeControl "5400+30"]

1. d4 {[%emt 0:00:00]} e6 {[%emt 0:00:00]} 2. c4 {[%emt 0:00:00]} d5 {[%emt 0:00:00]} 3. Nc3 {[%emt 0:00:00]} c5 {[%emt 0:00:00]} 4. cxd5 {[%emt 0:00:00]} exd5 {[%emt 0:00:00]} 5. Nf3 {[%emt 0:00:19]} Nc6 {[%emt 0:00:00]} 6. g3 {[%emt 0:00:16]} Nf6 {[%emt 0:00:00]} 7. Bg2 {[%emt 0:00:34]} Be7 {[%emt 0:00:02]} 8. O-O {[%emt 0:00:48]} O-O {[%emt 0:00:06]} 9. Bg5 {[%emt 0:05:42]} cxd4 {[%emt 0:00:38]} 10. Nxd4 {[%emt 0:00:12]} h6 {[%emt 0:00:05]} 11. Be3 {[%emt 0:00:32]} Re8 {[%emt 0:00:06]} 12. Rc1 {[%emt 0:06:27]} Bf8 {[%emt 0:02:07]} 13. Nxc6 {[%emt 0:03:27]} bxc6 {[%emt 0:02:16]} 14. Bd4 {[%emt 0:00:27]} Bg4 {[%emt 0:01:19]} 15. h3 {[%emt 0:00:59]} Be6 {[%emt 0:00:39]} 16. Kh2 {[%emt 0:00:32]} Qd7 {[%emt 0:11:24]} 17. Na4 {[%emt 0:06:59]} Ne4 {[%emt 0:01:14]} 18. Nc5 {[%emt 0:01:31]} Bxc5 {[%emt 0:00:56]} 19. Bxc5 {[%emt 0:00:24]} Qb7 {[%emt 0:02:46]} 20. Qd4 {[%emt 0:15:32]} Qa6 {[%emt 0:02:18]} 21. e3 {[%emt 0:01:20]} Qxa2 {[%emt 0:04:26]} 22. Ra1 {[%emt 0:01:20]} Qb3 {[%emt 0:00:13]} 23. Rxa7 {[%emt 0:01:56]} Qb5 {[%emt 0:03:02]} 24. b4 {[%emt 0:07:29]} Qe2 {[%emt 0:10:21]} 25. Qe5 {[%emt 0:12:17]} Rxa7 {[%emt 0:17:44]} 26. Bxa7 {[%emt 0:00:19]} Nd2 {[%emt 0:00:03]} 27. Rc1 {[%emt 0:05:26]} Qxf2 {[%emt 0:00:14]} 28. Qf4 {[%emt 0:00:24]} Qxf4 {[%emt 0:01:34]} 29. gxf4 {[%emt 0:00:02]} Ra8 {[%emt 0:01:01]} 30. Bd4 {[%emt 0:00:59]} Nc4 {[%emt 0:05:23]} 31. Bf1 {[%emt 0:02:35]} Nd2 {[%emt 0:03:29]} 32. Bg2 {[%emt 0:00:42]} Rc8 {[%emt 0:00:32]} 33. Rc2 {[%emt 0:00:24]} Nc4 {[%emt 0:01:32]} 34. Bf1 {[%emt 0:01:07]} Bf5 {[%emt 0:01:09]} 35. Ra2 {[%emt 0:03:57]} Nd6 {[%emt 0:01:11]} 36. h4 {[%emt 0:00:37]} f6 {[%emt 0:01:22]} 37. Ra6 {[%emt 0:01:15]} Rc7 {[%emt 0:01:18]} 38. Ra8+ {[%emt 0:01:03]} Rc8 {[%emt 0:01:20]} 39. Ra6 {[%emt 0:00:22]} Be4 {[%emt 0:01:35]} 40. Bh3 {[%emt 0:00:48]} Bf5 {[%emt 0:02:44]} 41. Bf1 {[%emt 0:01:39]} Rc7 {[%emt 0:01:03]} 42. Ra8+ {[%emt 0:00:26]} Kh7 {[%emt 0:00:01]} 43. Ba6 {[%emt 0:00:37]} Re7 {[%emt 0:05:37]} 44. Bc5 {[%emt 0:00:55]} Rd7 {[%emt 0:02:30]} 45. Bc8 {[%emt 0:03:10]} Rc7 {[%emt 0:00:43]} 46. Bxd6 {[%emt 0:00:24]} Rxc8 {[%emt 0:00:04]} 47. Rxc8 {[%emt 0:00:08]} Bxc8 {[%emt 0:00:04]} 48. Kg3 {[%emt 0:00:20]} g5 {[%emt 0:00:21]} 49. fxg5 {[%emt 0:01:13]} fxg5 {[%emt 0:00:06]} 50. hxg5 {[%emt 0:00:13]} hxg5 {[%emt 0:00:04]} 51. Be7 {[%emt 0:01:10]} Kg6 {[%emt 0:00:05]} 52. Bd8 {[%emt 0:00:26]} Kf5 {[%emt 0:00:04]} 53. Be7 {[%emt 0:00:24]} g4 {[%emt 0:00:04]} 54. Bc5 {[%emt 0:01:05]} Ke4 {[%emt 0:00:05]} 55. Ba7 {[%emt 0:00:51]} Kd3 {[%emt 0:00:06]} 56. Bb6 {[%emt 0:00:54]} Kc4 {[%emt 0:00:02]} 57. Bc5 {[%emt 0:00:06]} Kc3 {[%emt 0:00:03]} 58. Kf4 {[%emt 0:00:54]} Kc4 {[%emt 0:00:02]} 59. Kg3 {[%emt 0:00:13]} Kd3 {[%emt 0:00:06]} 60. Ba7 {[%emt 0:00:35]} Kc3 {[%emt 0:00:02]} 61. Bc5 {[%emt 0:00:07]} Kc4 {[%emt 0:00:01]} 62. Kf4 {[%emt 0:00:34]} Kd3 {[%emt 0:00:01]} 63. Kg3 {[%emt 0:00:43]} Ke2 {[%emt 0:00:11]} 64. Ba7 {[%emt 0:00:10]} Bd7 {[%emt 0:00:06]} 65. Bb6 1/2-1/2

[Event "19th IPCA WCC 2019"]
[Site "Ruzomberok"]
[Date "2019.06.30"]
[Round "3.4"]
[White "Mukha, Nikolay"]
[Black "Nowak, Lukasz"]
[Result "1/2-1/2"]
[ECO "D37"]
[WhiteElo "2159"]
[BlackElo "2267"]
[Annotator "NA"]
[PlyCount "63"]
[EventDate "2019.06.28"]
[EventType "swiss"]
[EventCountry "SVK"]
[SourceTitle "playchess.com"]
[Source "ChessBase"]
[SourceQuality "1"]
[TimeControl "5400+30"]

1. d4 {[%emt 0:00:00]} Nf6 {[%emt 0:00:00]} 2. c4 {[%emt 0:00:00]} e6 {[%emt 0:00:00]} 3. Nf3 {[%emt 0:01:03]} d5 {[%emt 0:00:06]} 4. Nc3 {[%emt 0:01:39]} a6 {[%emt 0:00:10]} 5. cxd5 {[%emt 0:01:39]} exd5 {[%emt 0:00:11]} 6. Bg5 {[%emt 0:00:18]} Be6 {[%emt 0:00:19]} 7. e3 {[%emt 0:00:48]} Nbd7 {[%emt 0:00:19]} 8. Be2 {[%emt 0:01:23]} Bd6 {[%emt 0:01:23]} 9. O-O {[%emt 0:00:52]} c6 {[%emt 0:01:48]} 10. Qc2 {[%emt 0:06:48]} O-O {[%emt 0:05:48]} 11. Rac1 {[%emt 0:04:29]} Qc7 {[%emt 0:05:23]} 12. Bxf6 {[%emt 0:01:11]} Nxf6 {[%emt 0:00:13]} 13. Rfd1 {[%emt 0:00:24]} Bg4 {[%emt 0:01:08]} 14. h3 {[%emt 0:01:50]} Bh5 {[%emt 0:02:46]} 15. Nh4 {[%emt 0:01:38]} Bxe2 {[%emt 0:02:15]} 16. Qxe2 {[%emt 0:00:31]} g6 {[%emt 0:02:31]} 17. Nf3 {[%emt 0:01:49]} Qe7 {[%emt 0:00:19]} 18. Ne1 {[%emt 0:05:48]} Ne4 {[%emt 0:02:41]} 19. Nd3 {[%emt 0:02:41]} Rae8 {[%emt 0:11:45]} 20. Nxe4 {[%emt 0:01:48]} Qxe4 {[%emt 0:01:38]} 21. Qf3 {[%emt 0:12:23]} f5 {[%emt 0:08:33]} 22. Qxe4 {[%emt 0:00:25]} Rxe4 {[%emt 0:00:09]} 23. Nc5 {[%emt 0:06:15]} Bxc5 {[%emt 0:02:24]} 24. Rxc5 {[%emt 0:00:31]} f4 {[%emt 0:01:02]} 25. Rc3 {[%emt 0:00:26]} Rfe8 {[%emt 0:21:09]} 26. exf4 {[%emt 0:10:46]} Rxf4 {[%emt 0:00:24]} 27. Re3 {[%emt 0:04:18]} Ree4 {[%emt 0:05:55]} 28. Rxe4 {[%emt 0:00:19]} Rxe4 {[%emt 0:00:25]} 29. Kf1 {[%emt 0:00:44]} Kf7 {[%emt 0:00:34]} 30. f3 {[%emt 0:00:55]} Re6 {[%emt 0:00:16]} 31. h4 {[%emt 0:01:01]} a5 {[%emt 0:04:19]} 32. Kf2 1/2-1/2

[Event "19th IPCA WCC 2019"]
[Site "Ruzomberok"]
[Date "2019.06.30"]
[Round "3.5"]
[White "Valenta, Vit"]
[Black "Tebenkov, Vladislav"]
[Result "1-0"]
[ECO "A00"]
[WhiteElo "2147"]
[BlackElo "2096"]
[Annotator "NA"]
[PlyCount "67"]
[EventDate "2019.06.28"]
[EventType "swiss"]
[EventCountry "SVK"]
[SourceTitle "playchess.com"]
[Source "ChessBase"]
[SourceQuality "1"]
[TimeControl "5400+30"]

1. b4 {[%emt 0:00:00]} e5 {[%emt 0:00:36]} 2. Bb2 {[%emt 0:00:00]} d6 {[%emt 0:04:15]} 3. g3 {[%emt 0:00:04]} f5 {[%emt 0:00:42]} 4. Bg2 {[%emt 0:00:12]} Nf6 {[%emt 0:01:10]} 5. d3 {[%emt 0:01:17]} Be7 {[%emt 0:04:51]} 6. Nd2 {[%emt 0:05:20]} O-O {[%emt 0:04:31]} 7. e3 {[%emt 0:01:45]} Qe8 {[%emt 0:10:08]} 8. Ne2 {[%emt 0:02:14]} Nc6 {[%emt 0:02:46]} 9. b5 {[%emt 0:01:37]} Nd8 {[%emt 0:00:37]} 10. c4 {[%emt 0:00:26]} Ne6 {[%emt 0:01:15]} 11. O-O {[%emt 0:01:11]} Qh5 {[%emt 0:07:54]} 12. Nc3 {[%emt 0:02:11]} Qh6 {[%emt 0:02:18]} 13. Nd5 {[%emt 0:01:32]} Bd8 {[%emt 0:03:47]} 14. Qe2 {[%emt 0:05:13]} f4 {[%emt 0:04:25]} 15. Nxf6+ {[%emt 0:12:48]} Bxf6 {[%emt 0:00:15]} 16. Ne4 {[%emt 0:00:55]} Ng5 {[%emt 0:12:09]} 17. Nxf6+ {[%emt 0:02:08]} gxf6 {[%emt 0:01:17]} 18. exf4 {[%emt 0:05:29]} exf4 {[%emt 0:00:10]} 19. h4 {[%emt 0:03:14]} f3 {[%emt 0:06:53]} 20. Bxf3 {[%emt 0:03:56]} Nxf3+ {[%emt 0:00:13]} 21. Qxf3 {[%emt 0:00:12]} Qg6 {[%emt 0:00:50]} 22. Rfe1 {[%emt 0:04:45]} Bf5 {[%emt 0:03:14]} 23. Re7 {[%emt 0:09:18]} Rae8 {[%emt 0:02:08]} 24. Rae1 {[%emt 0:10:12]} Rxe7 {[%emt 0:00:15]} 25. Rxe7 {[%emt 0:00:02]} Bxd3 {[%emt 0:00:42]} 26. Qd5+ {[%emt 0:02:16]} Kh8 {[%emt 0:01:29]} 27. h5 {[%emt 0:00:41]} Qf5 {[%emt 0:02:29]} 28. Qxf5 {[%emt 0:00:25]} Bxf5 {[%emt 0:00:07]} 29. Rxc7 {[%emt 0:00:05]} Be6 {[%emt 0:00:41]} 30. Rxb7 {[%emt 0:05:02]} Bxc4 {[%emt 0:00:48]} 31. h6 {[%emt 0:00:27]} a6 {[%emt 0:01:12]} 32. b6 {[%emt 0:01:13]} Bd5 {[%emt 0:00:07]} 33. Re7 {[%emt 0:01:47]} Rc8 {[%emt 0:00:37]} 34. g4 {[%emt 0:04:36]} 1-0

[Event "19th IPCA WCC 2019"]
[Site "Ruzomberok"]
[Date "2019.06.30"]
[Round "3.6"]
[White "Shashikant, Kutwal"]
[Black "Obodchuk, Andrei"]
[Result "1-0"]
[ECO "B90"]
[WhiteElo "2176"]
[BlackElo "2316"]
[Annotator "NA"]
[PlyCount "47"]
[EventDate "2019.06.28"]
[EventType "swiss"]
[EventCountry "SVK"]
[SourceTitle "playchess.com"]
[Source "ChessBase"]
[SourceQuality "1"]
[TimeControl "5400+30"]

1. e4 {[%emt 0:00:00]} c5 {[%emt 0:00:00]} 2. Nf3 {[%emt 0:00:02]} d6 {[%emt 0:00:00]} 3. d4 {[%emt 0:00:31]} cxd4 {[%emt 0:00:00]} 4. Nxd4 {[%emt 0:00:06]} Nf6 {[%emt 0:00:00]} 5. Nc3 {[%emt 0:00:07]} a6 {[%emt 0:00:00]} 6. Be3 {[%emt 0:01:15]} e6 {[%emt 0:06:12]} 7. Be2 {[%emt 0:01:08]} Qc7 {[%emt 0:00:20]} 8. f4 {[%emt 0:06:03]} b5 {[%emt 0:01:59]} 9. O-O {[%emt 0:14:34]} Bb7 {[%emt 0:06:05]} 10. Bf3 {[%emt 0:11:13]} b4 {[%emt 0:02:16]} 11. e5 {[%emt 0:11:40]} dxe5 {[%emt 0:04:09]} 12. fxe5 {[%emt 0:02:52]} Nfd7 {[%emt 0:01:53]} 13. Bxb7 {[%emt 0:12:13]} Qxb7 {[%emt 0:00:47]} 14. Na4 {[%emt 0:00:51]} g6 {[%emt 0:07:11]} 15. Qg4 {[%emt 0:06:58]} Nxe5 {[%emt 0:01:32]} 16. Qh3 {[%emt 0:00:59]} Nbc6 {[%emt 0:07:49]} 17. Rad1 {[%emt 0:13:12]} Be7 {[%emt 0:05:18]} 18. Nxe6 {[%emt 0:05:16]} fxe6 {[%emt 0:00:14]} 19. Qxe6 {[%emt 0:00:06]} Qc8 {[%emt 0:02:39]} 20. Nc5 {[%emt 0:00:21]} h6 {[%emt 0:11:50]} 21. Nd7 {[%emt 0:03:01]} Nxd7 {[%emt 0:04:20]} 22. Qxg6+ {[%emt 0:00:10]} Kd8 {[%emt 0:00:03]} 23. Bb6+ {[%emt 0:00:12]} Qc7 {[%emt 0:00:02]} 24. Qxc6 {[%emt 0:00:59]} 1-0

[Event "19th IPCA WCC 2019"]
[Site "Ruzomberok"]
[Date "2019.06.30"]
[Round "3.7"]
[White "Babula, Milan"]
[Black "Kovacevic, Krsto"]
[Result "1/2-1/2"]
[ECO "B90"]
[WhiteElo "2220"]
[BlackElo "2049"]
[Annotator "NA"]
[PlyCount "107"]
[EventDate "2019.06.28"]
[EventType "swiss"]
[EventCountry "SVK"]
[SourceTitle "playchess.com"]
[Source "ChessBase"]
[SourceQuality "1"]
[TimeControl "5400+30"]

1. e4 {[%emt 0:00:00]} c5 {[%emt 0:00:00]} 2. Nf3 {[%emt 0:00:00]} d6 {[%emt 0:00:00]} 3. d4 {[%emt 0:00:00]} cxd4 {[%emt 0:00:06]} 4. Nxd4 {[%emt 0:00:00]} Nf6 {[%emt 0:00:28]} 5. Nc3 {[%emt 0:00:00]} a6 {[%emt 0:00:07]} 6. h3 {[%emt 0:00:00]} e6 {[%emt 0:00:24]} 7. g4 {[%emt 0:00:22]} Be7 {[%emt 0:00:30]} 8. Bg2 {[%emt 0:00:25]} Nfd7 {[%emt 0:00:25]} 9. Be3 {[%emt 0:08:58]} Qc7 {[%emt 0:07:01]} 10. O-O {[%emt 0:08:17]} Ne5 {[%emt 0:12:49]} 11. Re1 {[%emt 0:07:46]} Nc4 {[%emt 0:04:43]} 12. Bc1 {[%emt 0:03:52]} b5 {[%emt 0:01:40]} 13. Nf5 {[%emt 0:14:02]} O-O {[%emt 0:03:38]} 14. Nxe7+ {[%emt 0:04:24]} Qxe7 {[%emt 0:00:10]} 15. b3 {[%emt 0:02:04]} Ne5 {[%emt 0:03:06]} 16. Bb2 {[%emt 0:06:48]} Bb7 {[%emt 0:02:36]} 17. Qd2 {[%emt 0:03:39]} Nbc6 {[%emt 0:01:00]} 18. Rad1 {[%emt 0:01:47]} Rad8 {[%emt 0:01:21]} 19. Qe3 {[%emt 0:06:17]} Rd7 {[%emt 0:07:19]} 20. Rd2 {[%emt 0:00:10]} Rfd8 {[%emt 0:00:07]} 21. Red1 {[%emt 0:00:03]} h6 {[%emt 0:01:35]} 22. Ne2 {[%emt 0:04:59]} Ng6 {[%emt 0:00:29]} 23. f4 {[%emt 0:18:33]} e5 {[%emt 0:16:31]} 24. Qc3 {[%emt 0:05:35]} b4 {[%emt 0:00:18]} 25. Qg3 {[%emt 0:01:32]} Qh4 {[%emt 0:07:56]} 26. Kh2 {[%emt 0:00:40]} Qxg3+ {[%emt 0:00:17]} 27. Kxg3 {[%emt 0:00:01]} f6 {[%emt 0:00:21]} 28. h4 {[%emt 0:01:17]} a5 {[%emt 0:02:12]} 29. f5 {[%emt 0:00:38]} Nge7 {[%emt 0:00:41]} 30. a3 Ba6 {[%emt 0:04:52]} 31. axb4 {[%emt 0:01:49]} axb4 {[%emt 0:00:09]} 32. Kf2 {[%emt 0:00:08]} Kf8 {[%emt 0:01:46]} 33. Bf1 {[%emt 0:00:24]} d5 {[%emt 0:01:55]} 34. exd5 {[%emt 0:01:03]} Rxd5 {[%emt 0:00:47]} 35. Rxd5 {[%emt 0:00:30]} Rxd5 {[%emt 0:00:07]} 36. Rxd5 {[%emt 0:00:28]} Nxd5 {[%emt 0:00:36]} 37. Bg2 {[%emt 0:00:52]} Bxe2 {[%emt 0:01:33]} 38. Bxd5 {[%emt 0:00:18]} Ne7 {[%emt 0:00:16]} 39. Bf3 {[%emt 0:00:02]} Bb5 {[%emt 0:01:45]} 40. Bc1 {[%emt 0:00:01]} h5 {[%emt 0:04:44]} 41. Bd2 {[%emt 0:00:18]} hxg4 {[%emt 0:00:32]} 42. Bxg4 {[%emt 0:00:02]} Nd5 {[%emt 0:00:37]} 43. Bf3 {[%emt 0:00:19]} Nc3 {[%emt 0:00:20]} 44. Ke3 {[%emt 0:01:03]} Ke7 {[%emt 0:00:19]} 45. Bxc3 {[%emt 0:02:11]} bxc3 {[%emt 0:00:04]} 46. Be2 {[%emt 0:00:18]} Bd7 {[%emt 0:00:22]} 47. Bd3 {[%emt 0:00:09]} Kd6 {[%emt 0:00:28]} 48. Be4 {[%emt 0:00:14]} Kc5 {[%emt 0:00:33]} 49. Kd3 {[%emt 0:00:18]} Kb4 {[%emt 0:00:30]} 50. Ke3 {[%emt 0:00:01]} Bc8 {[%emt 0:06:42]} 51. Kd3 {[%emt 0:01:34]} Ba6+ 52. Ke3 Bc8 {[%emt 0:01:03]} 53. Kd3 {[%emt 0:00:03]} Bd7 {[%emt 0:00:10]} 54. Ke3 {[%emt 0:00:07]} 1/2-1/2

[Event "19th IPCA WCC 2019"]
[Site "Ruzomberok"]
[Date "2019.06.30"]
[Round "3.8"]
[White "Tersinsev, Andrey"]
[Black "Gerasimova, Svetlana"]
[Result "1-0"]
[ECO "A45"]
[WhiteElo "2164"]
[BlackElo "1913"]
[Annotator "NA"]
[PlyCount "83"]
[EventDate "2019.06.28"]
[EventType "swiss"]
[EventCountry "SVK"]
[SourceTitle "playchess.com"]
[Source "ChessBase"]
[SourceQuality "1"]
[TimeControl "5400+30"]

1. d4 {[%emt 0:00:00]} Nf6 {[%emt 0:00:00]} 2. Bf4 {[%emt 0:00:00]} c5 {[%emt 0:00:00]} 3. e3 {[%emt 0:01:58]} g6 {[%emt 0:00:17]} 4. c3 {[%emt 0:01:49]} Bg7 {[%emt 0:02:30]} 5. Be2 {[%emt 0:00:17]} O-O {[%emt 0:00:10]} 6. dxc5 {[%emt 0:03:38]} Na6 {[%emt 0:04:06]} 7. Bxa6 bxa6 8. Qf3 {[%emt 0:03:34]} d5 {[%emt 0:02:01]} 9. cxd6 {[%emt 0:03:23]} Bg4 {[%emt 0:00:05]} 10. Qc6 {[%emt 0:01:08]} Rc8 {[%emt 0:24:41]} 11. Qxa6 {[%emt 0:01:44]} Nd5 {[%emt 0:05:02]} 12. Ne2 {[%emt 0:05:11]} Nb4 {[%emt 0:02:15]} 13. cxb4 {[%emt 0:04:07]} Bxb2 {[%emt 0:02:36]} 14. f3 {[%emt 0:00:32]} Bd7 {[%emt 0:04:46]} 15. Kf2 {[%emt 0:08:24]} e5 {[%emt 0:05:28]} 16. Nd2 {[%emt 0:04:35]} exf4 {[%emt 0:01:35]} 17. Nxf4 {[%emt 0:02:26]} Bxa1 {[%emt 0:02:16]} 18. Rxa1 {[%emt 0:00:09]} Rc2 {[%emt 0:02:22]} 19. Qd3 {[%emt 0:03:34]} Qh4+ {[%emt 0:02:07]} 20. Kg1 {[%emt 0:11:53]} Rfc8 {[%emt 0:00:14]} 21. g3 {[%emt 0:09:04]} Qf6 {[%emt 0:01:45]} 22. Rd1 {[%emt 0:01:48]} Rc1 {[%emt 0:09:52]} 23. Nb3 {[%emt 0:03:36]} Rxd1+ {[%emt 0:01:14]} 24. Qxd1 {[%emt 0:00:03]} Qb2 {[%emt 0:02:25]} 25. Nc5 {[%emt 0:02:35]} Bc6 {[%emt 0:17:28]} 26. Nfd3 {[%emt 0:14:01]} Qf6 {[%emt 0:02:05]} 27. Nf4 {[%emt 0:01:17]} Rd8 {[%emt 0:01:33]} 28. d7 {[%emt 0:04:19]} Qe5 {[%emt 0:01:52]} 29. e4 {[%emt 0:01:55]} h5 {[%emt 0:01:00]} 30. Nd5 {[%emt 0:03:21]} h4 {[%emt 0:01:07]} 31. f4 {[%emt 0:00:35]} Qd6 {[%emt 0:00:38]} 32. Qd4 {[%emt 0:00:45]} Bxd5 {[%emt 0:00:39]} 33. Qxd5 {[%emt 0:01:23]} Qxd5 {[%emt 0:00:06]} 34. exd5 {[%emt 0:00:02]} hxg3 {[%emt 0:00:06]} 35. hxg3 {[%emt 0:00:06]} Kg7 {[%emt 0:00:10]} 36. Kf2 {[%emt 0:01:14]} Kf6 {[%emt 0:00:57]} 37. d6 {[%emt 0:00:08]} Kf5 {[%emt 0:00:37]} 38. Kf3 {[%emt 0:00:40]} g5 {[%emt 0:00:34]} 39. g4+ {[%emt 0:00:24]} Kf6 {[%emt 0:00:12]} 40. a4 {[%emt 0:00:16]} gxf4 {[%emt 0:01:28]} 41. Kxf4 {[%emt 0:00:07]} Rb8 {[%emt 0:00:16]} 42. Nb7 {[%emt 0:00:14]} 1-0

[Event "19th IPCA WCC 2019"]
[Site "Ruzomberok"]
[Date "2019.06.30"]
[Round "3.9"]
[White "Alekseev, Mikhail"]
[Black "Glazar, Domagoj"]
[Result "1-0"]
[ECO "C50"]
[WhiteElo "1869"]
[BlackElo "2153"]
[Annotator "NA"]
[PlyCount "105"]
[EventDate "2019.06.28"]
[EventType "swiss"]
[EventCountry "SVK"]
[SourceTitle "playchess.com"]
[Source "ChessBase"]
[SourceQuality "1"]
[TimeControl "5400+30"]

1. e4 {[%emt 0:00:00]} e5 {[%emt 0:02:06]} 2. Nf3 {[%emt 0:00:00]} Nc6 {[%emt 0:00:07]} 3. Bc4 {[%emt 0:00:05]} Bc5 {[%emt 0:00:58]} 4. O-O {[%emt 0:00:27]} Nf6 {[%emt 0:00:21]} 5. d3 {[%emt 0:02:12]} h6 {[%emt 0:02:29]} 6. c3 {[%emt 0:02:22]} d6 {[%emt 0:03:03]} 7. a4 {[%emt 0:04:24]} a5 {[%emt 0:00:20]} 8. h3 {[%emt 0:03:20]} O-O {[%emt 0:00:22]} 9. Bb3 {[%emt 0:02:00]} d5 {[%emt 0:03:22]} 10. exd5 {[%emt 0:01:59]} Nxd5 {[%emt 0:00:12]} 11. Nxe5 {[%emt 0:01:46]} Bxf2+ {[%emt 0:01:16]} 12. Rxf2 {[%emt 0:00:35]} Nxe5 {[%emt 0:00:16]} 13. d4 {[%emt 0:01:16]} Ng6 {[%emt 0:03:03]} 14. Na3 {[%emt 0:08:16]} c6 {[%emt 0:01:53]} 15. Bc2 {[%emt 0:03:20]} Re8 {[%emt 0:03:37]} 16. Nc4 {[%emt 0:05:29]} b5 {[%emt 0:02:42]} 17. Bxg6 {[%emt 0:01:03]} fxg6 {[%emt 0:00:18]} 18. Ne5 {[%emt 0:01:07]} Qd6 {[%emt 0:03:52]} 19. axb5 {[%emt 0:02:47]} cxb5 {[%emt 0:00:11]} 20. Qf3 {[%emt 0:00:56]} Kh7 {[%emt 0:03:23]} 21. Bxh6 {[%emt 0:04:02]} Bb7 {[%emt 0:02:27]} 22. Bxg7 {[%emt 0:02:38]} Qe6 {[%emt 0:08:40]} 23. Qf7 {[%emt 0:08:35]} Bc8 {[%emt 0:15:50]} 24. Ng4 {[%emt 0:03:51]} Qxf7 {[%emt 0:02:13]} 25. Rxf7 {[%emt 0:01:52]} Bxg4 {[%emt 0:00:34]} 26. hxg4 {[%emt 0:00:57]} Kg8 {[%emt 0:01:15]} 27. Rd7 {[%emt 0:01:54]} Ne3 {[%emt 0:01:24]} 28. Be5 {[%emt 0:00:21]} Re6 {[%emt 0:01:47]} 29. Re1 {[%emt 0:02:12]} Nxg4 {[%emt 0:01:01]} 30. Rg7+ {[%emt 0:00:11]} Kf8 {[%emt 0:00:51]} 31. Rf1+ {[%emt 0:00:19]} Nf6 {[%emt 0:00:36]} 32. Rxg6 {[%emt 0:00:15]} Ke7 {[%emt 0:04:02]} 33. Rfxf6 {[%emt 0:02:17]} Rxf6 {[%emt 0:00:14]} 34. Rxf6 {[%emt 0:00:14]} b4 {[%emt 0:00:43]} 35. cxb4 {[%emt 0:00:45]} axb4 {[%emt 0:00:03]} 36. Rb6 {[%emt 0:00:16]} Ra2 {[%emt 0:00:29]} 37. Rxb4 {[%emt 0:00:12]} Ke6 {[%emt 0:00:06]} 38. Rb6+ {[%emt 0:00:44]} Kd5 {[%emt 0:00:13]} 39. Kf2 {[%emt 0:00:58]} Ke4 {[%emt 0:00:09]} 40. Rb3 {[%emt 0:00:42]} Ra8 {[%emt 0:00:39]} 41. Re3+ {[%emt 0:00:31]} Kd5 {[%emt 0:00:14]} 42. g4 {[%emt 0:00:16]} Rg8 {[%emt 0:00:40]} 43. Rg3 {[%emt 0:00:38]} Ke4 {[%emt 0:01:09]} 44. g5 {[%emt 0:00:14]} Rg6 {[%emt 0:00:14]} 45. Bf6 {[%emt 0:00:07]} Rg8 {[%emt 0:00:22]} 46. g6 {[%emt 0:00:56]} Kf5 {[%emt 0:00:12]} 47. Rf3+ {[%emt 0:00:08]} Ke6 {[%emt 0:00:33]} 48. g7 {[%emt 0:00:15]} Rb8 {[%emt 0:02:15]} 49. Rb3 {[%emt 0:00:15]} Rc8 {[%emt 0:00:36]} 50. Be5 {[%emt 0:00:23]} Rc2+ {[%emt 0:01:19]} 51. Kf3 {[%emt 0:00:24]} Rc8 {[%emt 0:00:52]} 52. Rb8 {[%emt 0:00:12]} Rxb8 {[%emt 0:00:11]} 53. Bxb8 {[%emt 0:00:03]} 1-0

[Event "19th IPCA WCC 2019"]
[Site "Ruzomberok"]
[Date "2019.06.30"]
[Round "3.10"]
[White "Matana, Zoran"]
[Black "Wielecki, Zygmunt"]
[Result "1/2-1/2"]
[ECO "A44"]
[WhiteElo "1818"]
[BlackElo "2145"]
[Annotator "NA"]
[PlyCount "64"]
[EventDate "2019.06.28"]
[EventType "swiss"]
[EventCountry "SVK"]
[SourceTitle "playchess.com"]
[Source "ChessBase"]
[SourceQuality "1"]
[TimeControl "5400+30"]

1. d4 {[%emt 0:00:00]} c5 {[%emt 0:00:00]} 2. d5 {[%emt 0:00:00]} e5 {[%emt 0:01:04]} 3. c4 {[%emt 0:01:33]} d6 {[%emt 0:00:30]} 4. e4 {[%emt 0:01:42]} Ne7 {[%emt 0:02:38]} 5. f4 {[%emt 0:02:03]} exf4 {[%emt 0:00:30]} 6. Bxf4 {[%emt 0:00:22]} Ng6 {[%emt 0:00:27]} 7. Bg3 {[%emt 0:00:28]} Be7 {[%emt 0:01:25]} 8. Nf3 {[%emt 0:00:18]} Bf6 {[%emt 0:01:17]} 9. Nc3 {[%emt 0:00:29]} a6 {[%emt 0:03:53]} 10. Be2 {[%emt 0:00:50]} O-O {[%emt 0:00:36]} 11. O-O {[%emt 0:00:20]} Qe7 {[%emt 0:00:50]} 12. Qc2 {[%emt 0:00:50]} Nd7 {[%emt 0:01:29]} 13. Rae1 {[%emt 0:00:37]} Nde5 {[%emt 0:01:39]} 14. h3 {[%emt 0:04:59]} Nxf3+ {[%emt 0:00:52]} 15. Bxf3 {[%emt 0:00:36]} Ne5 {[%emt 0:00:56]} 16. Be2 {[%emt 0:00:31]} Bd7 {[%emt 0:01:02]} 17. b3 {[%emt 0:01:08]} Bh4 {[%emt 0:02:26]} 18. Bxh4 {[%emt 0:04:09]} Qxh4 19. Kh2 Rae8 {[%emt 0:04:17]} 20. Qd2 {[%emt 0:02:39]} Ng6 {[%emt 0:04:30]} 21. Bd3 {[%emt 0:02:14]} Re5 {[%emt 0:01:46]} 22. Qf2 {[%emt 0:00:43]} Qe7 {[%emt 0:04:31]} 23. Ne2 {[%emt 0:04:24]} b5 {[%emt 0:12:20]} 24. Nf4 {[%emt 0:01:46]} bxc4 {[%emt 0:04:15]} 25. bxc4 {[%emt 0:02:11]} Re8 {[%emt 0:03:55]} 26. Rb1 {[%emt 0:00:49]} f5 {[%emt 0:09:12]} 27. Nxg6 {[%emt 0:01:40]} hxg6 {[%emt 0:00:23]} 28. exf5 {[%emt 0:17:14]} Bxf5 {[%emt 0:01:21]} 29. Bxf5 {[%emt 0:07:02]} Rxf5 {[%emt 0:00:10]} 30. Qg3 {[%emt 0:00:18]} Rg5 {[%emt 0:08:18]} 31. Qf4 {[%emt 0:01:33]} Rf5 {[%emt 0:00:25]} 32. Qg3 {[%emt 0:00:31]} Rg5 1/2-1/2